Cogmind - Beta 14 @@@ ROGUE MODE // 2024.09.27 @ 20:05:37 Player: MarKhan Result: Destroyed by as-85367 with Assembled Rifle Performance ------------- Evolutions (0) 0 Regions Visited (2) 400 Robots Destroyed (9) 45 Value Destroyed (105) 105 Prototype IDs (0) 0 Alien Tech Used (0) 0 Bonus (0) 0 TOTAL SCORE: 550 Bonus ------- None Cogmind --------- Core Integrity 0/250 Matter 230/300 Energy 100/100 System Corruption 7% Temperature Cool (0) Movement Treading (160) Location -10/Mines Parts ------- > --- POWER (1) -------- (None) > --- PROPULSION (2) --- Light Treads > --- UTILITY (2) ------ Large Storage Unit > --- WEAPON (2) ------- (None) > --- INVENTORY (15) --- Light Ion Engine High-capacity Battery (250) Medium Matter Pod (0) Visual Processing Unit Sensor Array Signal Interpreter Improved Terrain Scanner Hacking Suite Light Assault Rifle Light Assault Rifle Mining Laser Mining Laser Peak State ------------ > --- POWER ------------ Light Ion Engine > --- PROPULSION ------- Light Treads Light Treads > --- UTILITY ---------- Small Storage Unit Improved Terrain Scanner > --- WEAPON ----------- Small Laser Assault Rifle > --- INVENTORY -------- Light Ion Engine Aluminum Leg Wheel Seismic Detector Light Assault Rifle [Rating: 9] Favorites ----------- Power Light Ion Engine Engine Light Ion Engine Propulsion Light Treads Treads Light Treads Wheel Compact Wheel Utility Large Storage Unit Device Seismic Detector Storage Large Storage Unit Weapon Assault Rifle Energy Gun Small Laser Ballistic Gun Assault Rifle Build | -11 -10 -10 ------- Run | Yrd Mat Min Slots Evolved . | . . . Power . | . . . Propulsion . | . . . Utility . | . . . Weapon . | . . . Parts Attached 15 | 7 3 5 Power 1 | 1 . . Engine 1 | 1 . . Core . | . . . Reactor . | . . . Propulsion 6 | 2 . 4 Treads 4 | 2 . 2 Leg . | . . . Wheel 2 | . . 2 Hover . | . . . Flight . | . . . Utility 6 | 2 3 1 Device 3 | 1 1 1 Storage 3 | 1 2 . Processor . | . . . Hackware . | . . . Protection . | . . . Artifact . | . . . Weapon 2 | 2 . . Energy Gun 1 | 1 . . Energy Cannon . | . . . Ballistic Gun 1 | 1 . . Ballistic Cannon . | . . . Launcher . | . . . Special Weapon . | . . . Impact Weapon . | . . . Slashing Weapon . | . . . Piercing Weapon . | . . . Special Melee Weapon . | . . . Unidentified Prototypes . | . . . Parts Lost 7 | . . 7 Power 1 | . . 1 Propulsion 3 | . . 3 Utility 1 | . . 1 Weapon 2 | . . 2 Highest Loss Streak 7 | . . 7 To Critical Strikes . | . . . Average Slot Usage (%) 96 | . 100 90 Engine 13 | . 14 13 Treads 27 | . 28 26 Device 11 | . 14 7 Storage 14 | . 14 14 Energy Gun 14 | . 14 14 Ballistic Gun 13 | . 14 12 Peak Build Rating 9 | 9 9 8 Average Rating 7 | 5 8 7 On Entrance 5 | . 9 8 Naked Turns . | . . . Heaviest Build 27 | 12 27 27 Greatest Support 40 | 40 40 40 Greatest Overweight (x) 1 | . . 1 Average Overweight (x) . | . . . Largest Inventory Capacity 15 | 8 15 15 Average Capacity 12 | 6 13 15 Most Carried 15 | 6 15 15 Average Carried 10 | 3 11 14 Final Capacity 15 | 8 15 15 Final Carried 14 | 6 14 12 Class Distribution -------------------- 100% | Mutant Dominant Class ---------------- Mutant | -10/Materials Mutant | -10/Mines Resources | -11 -10 -10 ----------- Run | Yrd Mat Min Matter Collected 308 | 195 46 67 Remotely . | . . . Salvage Created 128 | 15 46 67 Parts 24 | 5 11 8 Haulers Intercepted . | . . . Recyclers Shooed 1 | 1 . . Parts Field Recycled . | . . . Retrieved Matter . | . . . Parts Self-Destructed . | . . . Prevented . | . . . Kills | -11 -10 -10 ------- Run | Yrd Mat Min Combat Hostiles Destroyed 5 | . . 5 Guns 5 | . . 5 Classes Destroyed 4 | 1 2 1 Tunneler 1 | 1 . . Operator 1 | . 1 . Watcher 2 | . 2 . Swarmer 5 | . . 5 Best Kill Streak 3 | 1 1 3 Combat Bots Only 3 | . . 3 Max Kills in Single Turn 2 | 1 1 2 Gunslinging 1 | . . 1 Exploded . | . . . Melee . | . . . Uniques/NPCs Destroyed . | . . . Combat | -11 -10 -10 -------- Run | Yrd Mat Min Hostile Shots Fired 64 | . . 64 Missed 18 | . . 18 Damage Taken 871 | . . 871 Core 251 | . . 251 Absorbed by Shields . | . . . Core Remaining (%) 100 | 100 . . Volleys Fired 22 | 2 10 10 Largest 2 | 2 2 2 Hottest 60 | 60 60 60 Shots Fired 43 | 4 19 20 Gun 43 | 4 19 20 Cannon . | . . . Launcher . | . . . Special . | . . . Kinetic 22 | 2 10 10 Thermal 21 | 2 9 10 Explosive . | . . . Electromagnetic . | . . . Robot Hit Streak 5 | 2 5 4 Robot Miss Streak 4 | 1 4 2 Penetration Max . | . . . Secondary Targets 2 | . . 2 Max Gunslinging Chain 1 | . . 1 Shots Hit Robots 23 | 2 10 11 Core Hits 11 | 1 5 5 Critical Kills . | . . . Critical Parts Destroyed . | . . . Critical Strikes . | . . . Melee Attacks . | . . . Impact . | . . . Slashing . | . . . Piercing . | . . . Sneak Attacks . | . . . Combat Hostiles . | . . . Follow-up Attacks . | . . . Damage Inflicted 304 | 22 142 140 Guns 294 | 22 132 140 Cannons . | . . . Explosions . | . . . Melee . | . . . Ramming 10 | . 10 . Kinetic 164 | 10 75 79 Thermal 130 | 12 57 61 Explosive . | . . . Electromagnetic . | . . . Impact . | . . . Slashing . | . . . Piercing . | . . . Highest Corruption 7 | . . 7 Average Corruption 6 | . . 6 Corruption Purged . | . . . Corruption Blocked . | . . . Overload Shots . | . . . Overflow Damage . | . . . Projectiles . | . . . Explosions . | . . . Melee . | . . . Knockbacks . | . . . Impact . | . . . Kinetic . | . . . Secondary . | . . . Self-Inflicted Damage . | . . . Shots . | . . . Rammed 1 | . 1 . Targets Rammed 1 | . 1 . Kicked . | . . . Crushed . | . . . Highest Temperature 20 | . . 20 Average Temperature 20 | . . 20 Received Heat Transfer 60 | . . 60 Siege Activations . | . . . Robots Corrupted . | . . . Combat Hostiles . | . . . Parts Fried . | . . . Impact Corruptions . | . . . Robots Melted . | . . . Combat Hostiles . | . . . Parts Melted . | . . . Heat Transferred 300 | 25 125 150 Parts Sabotaged . | . . . Parts Stolen . | . . . Parts Stripped . | . . . Power Chain Reactions . | . . . Alert | -11 -10 -10 ------- Run | Yrd Mat Min Peak Influence 125 | 5 82 125 Initial 3 | . 3 . Average 48 | 2 32 109 Maximum Alert Level . | . . . Low Security (%) 100 | 100 100 100 Level 1 . | . . . Level 2 . | . . . Level 3 . | . . . Level 4 . | . . . Level 5 . | . . . High Security . | . . . Max Security . | . . . Squads Dispatched 3 | . 3 . Investigation . | . . . Extermination . | . . . Reinforcement 3 | . 3 . Assault . | . . . Garrison . | . . . Intercept . | . . . Searches Triggered . | . . . Construction Impeded . | . . . Haulers Reinforced . | . . . Active Scanning Responses . | . . . Cargo Convoy Interrupts . | . . . Stealth | -11 -10 -10 --------- Run | Yrd Mat Min Distress Signals 1 | . 1 . Communications Jammed . | . . . Distress Signals . | . . . Times Spotted 32 | . 6 26 Peak Tracking Total 10 | . 2 10 Tactical Retreats 1 | . . 1 Traps | -11 -10 -10 ------- Run | Yrd Mat Min Traps Triggered . | . . . Indirectly . | . . . Trap Hack Attempts . | . . . Triggered . | . . . Disarmed . | . . . Reprogrammed . | . . . Reused . | . . . Traps Extracted . | . . . Installed . | . . . Triggered . | . . . Machines | -11 -10 -10 ---------- Run | Yrd Mat Min Machines Disabled . | . . . Max in Single Turn . | . . . Machines Repaired . | . . . Machines Dismantled . | . . . Machines Sabotaged . | . . . Overloaded Fab Kills . | . . . Hacking | -11 -10 -10 --------- Run | Yrd Mat Min Machines Accessed . | . . . Terminals . | . . . Fabricators . | . . . Repair Stations . | . . . Recycling Units . | . . . Scanalyzers . | . . . Garrison Access . | . . . Total Hacks . | . . . Successful . | . . . Failed . | . . . Catastrophic . | . . . Database Lockouts . | . . . Manual . | . . . Terminals . | . . . Fabricators . | . . . Repair Stations . | . . . Recycling Units . | . . . Scanalyzers . | . . . Garrison Access . | . . . Terminal Hacks . | . . . Fabricator Hacks . | . . . Repair Station Hacks . | . . . Recycling Unit Hacks . | . . . Scanalyzer . | . . . Garrison Access Hacks . | . . . Unauthorized Hacks . | . . . Terminals . | . . . Fabricators . | . . . Repair Stations . | . . . Recycling Units . | . . . Scanalyzers . | . . . Garrison Access . | . . . Data Cores Recovered . | . . . Used . | . . . Hacking Detections . | . . . Full Trace Events . | . . . Feedback Events . | . . . Feedback Blocked . | . . . Robot Schematics Acquired . | . . . Robots Built . | . . . Authchips . | . . . Time . | . . . Total Robot Build Rating . | . . . Part Schematics Acquired . | . . . Parts Built . | . . . Authchips . | . . . Time . | . . . Total Part Build Rating . | . . . Parts Repaired . | . . . Time . | . . . Parts Recycled . | . . . Recycled Matter . | . . . Retrieved Matter . | . . . Retrieved Components . | . . . Parts Scanalyzed . | . . . Part Schematics Acquired . | . . . Parts Damaged . | . . . Bothacking | -11 -10 -10 ------------ Run | Yrd Mat Min Used RIF Installer . | . . . Robots Hacked . | . . . Non-combat . | . . . Combat . | . . . Robot Hacks Applied . | . . . Relay Couplers Released . | . . . Fabnet Peak Effective % . | . . . Robots Rewired . | . . . Allies Hacked . | . . . Hacks Repelled . | . . . Allies | -11 -10 -10 -------- Run | Yrd Mat Min Total Allies . | . . . Largest Group . | . . . Highest-Rated Group . | . . . Highest-Rated Ally . | . . . Total Orders . | . . . Ally Attacks . | . . . Total Damage . | . . . Kills . | . . . Allies Corrupted . | . . . Allies Melted . | . . . Intel | -11 -10 -10 ------- Run | Yrd Mat Min Robot Analysis Total . | . . . Derelict Logs Recovered . | . . . Drone Launches . | . . . Drone Recoveries . | . . . Exploration | -11 -10 -10 ------------- Run | Yrd Mat Min Turns Passed 755 | 133 407 215 Spaces Moved 410 | 71 225 114 Core 2 | 2 . . Treads 396 | 69 225 102 Legs . | . . . Wheels 12 | . . 12 Hover . | . . . Flight . | . . . Fastest Speed 50 | 50 160 115 Average Speed 158 | 156 160 155 Slowest Speed 240 | 160 160 240 Overloaded Moves . | . . . Propulsion Burnouts . | . . . Robots Hopped . | . . . Cave-ins Triggered . | . . . Exploration Rate (%) 24 | 5 38 31 Regions Visited 2 Branch Regions 1 Pre-discovered Areas . | . . . Known Exits Taken . | . . . Unknown Exits Taken 2 | 1 1 . Scrap Searched . | . . . Spaces Dug . | . . . Terrain Destroyed . | . . . Melee . | . . . Projectile . | . . . AOE . | . . . Terrain Rammed . | . . . Walls Destroyed . | . . . Machines Disabled . | . . . Actions | -11 -10 -10 --------- Run | Yrd Mat Min Total 471 | 86 253 132 Wait 1 | . . 1 Move 408 | 70 224 114 Hop . | . . . Pick Up 18 | 7 11 . Fast Attach 6 | 6 . . Attach 5 | 1 . 4 Detach 2 | . . 2 Swap 4 | . 3 1 Drop 4 | . 4 . Fire 22 | 2 10 10 Melee . | . . . Ram . | . . . Kick . | . . . Crush 1 | . 1 . Escape Stasis . | . . . Rewire . | . . . Trap . | . . . Miscellaneous . | . . . Route ------- -11/Scrapyard -10/Materials -10/Mines History --------- Turn | Location | Event 18 | -11/Scrapyard | Discovered new exit (range 13) 134 | -11/Scrapyard | Entered Materials 315 | -10/Materials | Build established: Mutant 353 | -10/Materials | Discovered new exit (range 14) 541 | -10/Materials | Entered Mines 599 | -10/Mines | Met a Derelict bent on vengeance 689 | -10/Mines | Assembled infested the area 694 | -10/Mines | Assisted by a Guerilla fighting off Assembled 739 | -10/Mines | Core integrity fell below 50% 752 | -10/Mines | Core integrity fell below 20% 756 | -10/Mines | Destroyed by as-85367 with Assembled Rifle Last Messages --------------- 00727_ as-00132 destroyed. 00729_ as-51047 destroyed. 00730_ Com. Wheel destroyed. 00734_ D-53 Grenadier heat damages Mni. Grenade Launcher. 00734_ as-01517 destroyed. 00735_ as-02240 destroyed. 00735_ D-53 Grenadier destroyed. 00735_ Com. Wheel destroyed. 00739_ Assault Rifle destroyed. 00741_ as-31129 destroyed. 00745_ Lgt. Ion Engine destroyed. 00745_ D-53 Grenadier destroyed. 00746_ U-05 Engineer builds a Wall. 00747_ Lgt. Treads destroyed. 00748_ Seismic Detector destroyed. 00748_ System corrupted by crushing effect (+4). 00750_ Sml. Laser destroyed. 00750_ System corrupted by crushing effect (+3). [Achievement: Back For More] Map ----- +----------------------------------------------------+ | | | | | | | ?????????????????????????????????????????????????? | | ?????????????????????????????????????????????????? | | ?????????????????????????????????????????????????? | | ?????????????????????????????????????????????????? | | ?????????????????????????????????????????????????? | | ?????????????????????????????????????????????????? | | ?????????????????????????????????????????????????? | | ?????????????????????????????????????????????????? | | ?????????????????????????????????????????????????? | | ?????????????????????????????????????????????????? | | ?????????????????????????????????????????????????? | | ?????????????????????????????????????????????????? | | ????????????????????????????????????#????????????? | | ???????????????????????????????????? ????????????? | | ???????????????????????????????????# ????????????? | | ???????????????????????????????????# #???????????? | | ??????????????????????????####?????# #???????????? | | ???????????????????????#### #####?# #???????????? | | ??????????????????????## #?# #???????????? | | ????????????????####??# #### #?# #???????????? | | ??????????????### #### ##??# #?# #???????????? | | ?????????????## ## #???# #?# #???????????? | | ????????????## @ ##??# ### ##??????????# | | ????????????# aa ##?# #??????????# | | ????????????# aa #?###### #??????????# | | ????????????# #??????# ###????????# | | ???######???# #??????# #????##### | | ???# ##### #??????### ###### | | ??## ## #????????# ### | | ?## ##????????######## #?# | | ## a ##????????????????#[#?# | | # a=% #?????????????????# ### | | ! % #????????????????## # | | =% #???????????????# | | % % ## #???????????????# = | | %= ### ## #???????????????##= [ | | #?####? #????????????????##* | | #?????? #?????????????????## | | % #?????? #??????????????????? | | ###### ### #???????#??????????????????? | | ?????##?## # #?????????????????????????? | | ?????????# ## #????????????????????????? | | ##?????????# ### ##????????????????????????? | | #???????????# #??####??????????????????????????## | | ????????????# #?????????????????????????????????? | | ????????????!! #?????????????????????????????????? | | ????????????# ##?????????????????????????????????? | +----------------------------------------------------+ Best States ------------- Heat Dissipation 25 Energy Generation 10 Energy Capacity 125 Matter Stores 245 Matter Capacity 300 Sight Range 16 Terrain Scan Range 16 Terrain Scan Density 10 Evasion (%) 40 Recoil Reduction 2 Item Schematics ----------------- None Robot Schematics ------------------ None Fabricated ------------ Nothing Alien Tech Used ----------------- None Achievements -------------- Back For More Challenges ------------ None Game ------ Seed StealthHybridBlade Manual? 0 Play Time 00:09:58 Cumulative 52.2 hours Start 2024.09.27 @ 19:43:48 End 2024.09.27 @ 20:05:37 Sessions 1 Manual Loads 0 Difficulty Rogue Special Mode None Game No. 50 Rogue 50 Adventurer 0 Explorer 0 Win Type - Total 2 Types 2/0/0/0/0/0/0/0/0 Lore% 24 Gallery% 36 Achievement% 37 Wizard Run 0 Options --------- Layout 1 ASCII 0 Keyboard 1 Movement Arrows Keybinds 0 Fullscreen 1 Font 24/Smallcaps Map View 50x35 Zoom Use 0% Tactical HUD 1 Map Filters NONE Filters NONE Steam 1 RUN: 78926f31-b393-4ab1-a1a2-cb8557d60883